fUST/lending_fUST_20250514
["ID","MTS","AMOUNT","RATE_DAILY","PERIOD"]
[360996817,1747188640798,-400.0,0.00014246,2]
[360996820,1747188640808,-165.179887,0.00014246,2]
[360996823,1747188640818,-400.0,0.00014246,2]
[360996826,1747188640828,-165.179887,0.00014246,2]
[360996829,1747188640838,-400.0,0.00014246,2]
[360996832,1747188640847,-400.0,0.00014246,2]
[360996835,1747188640857,-400.0,0.00014246,2]
[360996838,1747188640866,-1181.47,0.00014246,2]
[360996841,1747188640876,-400.0,0.00014246,2]
[360996844,1747188640885,-400.0,0.00014246,2]
[360996847,1747188640895,-400.0,0.00014246,2]
[360996850,1747188640905,-400.0,0.00014246,2]
[360996853,1747188640914,-405.31564659,0.00014246,2]
[360996855,1747188640923,-601.61,0.00014246,2]
[360996858,1747188640932,-400.0,0.00014246,2]
[360996861,1747188640942,-3077.23,0.00014246,2]
[360996864,1747188640951,-400.0,0.00014246,2]
[360996868,1747188640961,-400.0,0.00014246,2]
[360996871,1747188640971,-502.66473959,0.00014294,2]
[360996873,1747188640981,-151.0,0.00014427,2]
[360996876,1747188640991,-500.0,0.00014451,2]
[360996879,1747188641000,-151.0,0.00014452,2]
[360996883,1747188641011,-151.0,0.00014452,2]
[360996885,1747188641021,-246.966158,0.00014452,2]
[360996888,1747188641031,-246.966158,0.00014452,2]
[360996891,1747188641043,-151.0,0.00014452,2]
[360996895,1747188641055,-179.877871,0.00014452,2]
[360996898,1747188641065,-151.0,0.00014452,2]
[360996901,1747188641075,-151.0,0.00014452,2]
[360996903,1747188641085,-3058.0,0.000145,2]
[360996905,1747188641095,-151.0,0.000145,2]
[360996907,1747188641105,-343.25118519,0.00014519,2]
[360996909,1747188641114,-151.0,0.0001452,2]
[360996912,1747188641124,-151.0,0.0001452,2]
[360996915,1747188641133,-151.0,0.0001452,2]
[360996917,1747188641143,-400.0,0.0001452,2]
[360996920,1747188641153,-151.0,0.0001452,2]
[360996924,1747188641168,-151.0,0.0001452,2]
[360996927,1747188641177,-151.0,0.0001452,2]
[360996930,1747188641187,-151.0,0.0001452,2]
[360996933,1747188641197,-151.0,0.0001452,2]
[360996936,1747188641207,-190.630887,0.0001452,2]
[360996939,1747188641217,-400.0,0.0001452,2]
[360996942,1747188641226,-190.630887,0.0001452,2]
[360996945,1747188641237,-400.0,0.0001452,2]
[360996948,1747188641247,-151.0,0.0001452,2]
[360996951,1747188641256,-151.0,0.0001452,2]
[360996954,1747188641266,-156.645854,0.0001452,2]
[360996957,1747188641275,-400.0,0.0001452,2]
[360996960,1747188641286,-493.21,0.0001452,2]
[360996963,1747188641298,-400.0,0.0001452,2]
[360996965,1747188641308,-400.0,0.0001452,2]
[360996967,1747188641318,-224.34219147,0.0001452,2]
[360996969,1747188641329,-634.45,0.0001452,2]
[360996971,1747188641338,-400.0,0.0001452,2]
[360996973,1747188641348,-584.31,0.0001452,2]
[360996975,1747188641358,-400.0,0.0001452,2]
[360996977,1747188641368,-400.0,0.0001452,2]
[360996979,1747188641378,-400.0,0.0001452,2]
[360996981,1747188641387,-1080.95,0.0001452,2]
[360996982,1747188641397,-400.0,0.0001452,2]
[360996984,1747188641406,-400.0,0.0001452,2]
[360996986,1747188641416,-1463.11,0.0001452,2]
[360996988,1747188641425,-1250.31,0.0001452,2]
[360996990,1747188641435,-463.49477903,0.0001452,2]
[360996992,1747188641444,-400.0,0.0001452,2]
[360996994,1747188641454,-400.0,0.0001452,2]
[360996996,1747188641464,-400.0,0.0001452,2]
[360996998,1747188641474,-400.0,0.0001452,2]
[360997000,1747188641484,-400.0,0.0001452,2]
[360997002,1747188641494,-319.09157237,0.0001452,2]
[360997004,1747188641503,-165.179887,0.0001452,2]
[360997006,1747188641514,-400.0,0.0001452,2]
[360997009,1747188641524,-165.179887,0.0001452,2]
[360997011,1747188641534,-400.0,0.0001452,2]
[360997013,1747188641545,-403.71806959,0.0001452,2]
[360997015,1747188641554,-400.0,0.0001452,2]
[360997017,1747188641564,-1181.47,0.0001452,2]
[360997019,1747188641573,-400.0,0.0001452,2]
[360997021,1747188641582,-400.0,0.0001452,2]
[360997023,1747188641592,-400.0,0.0001452,2]
[360997024,1747188641601,-400.0,0.0001452,2]
[360997026,1747188641611,-601.61,0.0001452,2]
[360997028,1747188641621,-531.5911596,0.0001452,2]
[360997030,1747188641630,-3077.23,0.0001452,2]
[360997032,1747188641640,-400.0,0.0001452,2]
[360997034,1747188641649,-210.19027354,0.00014557,2]
[360997037,1747188641659,-10377.07522549,0.00014659,2]
[360997039,1747188641669,-168.33012,0.00014659,2]
[360997041,1747188641678,-168.33012,0.00014659,2]
[360997043,1747188641688,-1255.388467,0.00014659,2]
[360997045,1747188641698,-1255.388467,0.00014659,2]
[360997047,1747188641707,-151.0,0.00014659,2]
[360997049,1747188641718,-151.0,0.00014794,2]
[360997051,1747188641727,-400.0,0.00014794,2]
[360997053,1747188641736,-151.0,0.00014794,2]
[360997055,1747188641745,-400.0,0.00014794,2]
[360997057,1747188641755,-151.0,0.00014794,2]
[360997058,1747188641764,-400.0,0.00014794,2]
[360997059,1747188641773,-400.0,0.00014794,2]
[360997060,1747188641782,-151.0,0.00014794,2]
[360997061,1747188641793,-493.21,0.00014794,2]
[360997063,1747188641803,-408.94867918,0.00014794,2]
[360997065,1747188641813,-400.0,0.00014794,2]
[360997066,1747188641822,-246.966158,0.00014794,2]
[360997069,1747188641832,-634.45,0.00014794,2]
[360997071,1747188641841,-246.966158,0.00014794,2]
[360997073,1747188641851,-409.08707323,0.00014794,2]
[360997075,1747188641860,-584.31,0.00014794,2]
[360997077,1747188641869,-400.0,0.00014794,2]
[360997079,1747188641879,-400.0,0.00014794,2]
[360997081,1747188641888,-151.0,0.00014794,2]
[360997083,1747188641897,-400.0,0.00014794,2]
[360997085,1747188641906,-1080.95,0.00014794,2]
[360997086,1747188641916,-400.0,0.00014794,2]
[360997088,1747188641925,-400.0,0.00014794,2]
[360997090,1747188641935,-151.0,0.00014794,2]
[360997093,1747188641944,-1463.11,0.00014794,2]
[360997095,1747188641953,-1250.31,0.00014794,2]
[360997097,1747188641963,-400.0,0.00014794,2]
[360997099,1747188641972,-400.0,0.00014794,2]
[360997101,1747188641982,-400.0,0.00014794,2]
[360997104,1747188641991,-400.0,0.00014794,2]
[360997107,1747188642000,-165.179887,0.00014794,2]
[360997109,1747188642010,-400.0,0.00014794,2]
[360997112,1747188642019,-165.179887,0.00014794,2]
[360997115,1747188642028,-400.0,0.00014794,2]
[360997118,1747188642039,-180.21875362,0.00014794,2]
[360997121,1747188642048,-1181.47,0.00014794,2]
[360997124,1747188642057,-400.0,0.00014794,2]
[360997128,1747188642066,-400.0,0.00014794,2]
[360997131,1747188642075,-151.0,0.00014794,2]
[360997134,1747188642085,-287.88314895,0.00014794,2]
[360997137,1747188642094,-151.0,0.00014794,2]
[360997140,1747188642104,-601.61,0.00014794,2]
[360997143,1747188642113,-3077.23,0.00014794,2]
[360997145,1747188642122,-364.52666207,0.00014794,2]
[360997148,1747188642131,-2000.0,0.0001499,4]
[360997151,1747188642141,-160.0,0.00015,2]
[360997155,1747188642151,-1812.85062268,0.00015032,3]
[360997157,1747188642162,-1427.54835569,0.00015033,2]
[360997161,1747188642174,-151.0,0.00015055,2]
[360997164,1747188642184,-151.0,0.00015055,2]
[360997166,1747188642193,-151.0,0.00015055,2]
[360997169,1747188642204,-151.0,0.00015055,2]
[360997172,1747188642214,-151.0,0.00015055,2]
[360997175,1747188642223,-151.0,0.00015055,2]
[360997178,1747188642233,-151.0,0.00015055,2]
[360997181,1747188642242,-190.630887,0.00015055,2]
[360997184,1747188642253,-190.630887,0.00015055,2]
[360997187,1747188642263,-12567.61019143,0.00015068,2]
[360997190,1747188642272,-151.0,0.00015068,2]
[360997193,1747188642282,-400.0,0.00015068,2]
[360997197,1747188642294,-151.0,0.00015068,2]
[360997199,1747188642303,-375.19706636,0.00015068,2]
[360997202,1747188642313,-400.0,0.00015068,2]
[360997205,1747188642322,-151.0,0.00015068,2]
[360997209,1747188642333,-151.0,0.00015068,2]
[360997211,1747188642343,-367.92559284,0.00015068,2]
[360997214,1747188642352,-493.21,0.00015068,2]
[360997217,1747188642362,-400.0,0.00015068,2]
[360997220,1747188642372,-634.45,0.00015068,2]
[360997224,1747188642383,-584.31,0.00015068,2]
[360997226,1747188642393,-400.0,0.00015068,2]
[360997228,1747188642402,-400.0,0.00015068,2]
[360997230,1747188642412,-151.0,0.00015068,2]
[360997233,1747188642422,-400.0,0.00015068,2]
[360997235,1747188642431,-1080.95,0.00015068,2]
[360997238,1747188642441,-400.0,0.00015068,2]
[360997241,1747188642451,-400.0,0.00015068,2]
[360997244,1747188642460,-1463.11,0.00015068,2]
[360997248,1747188642470,-1250.31,0.00015068,2]
[360997250,1747188642479,-447.69799799,0.00015068,2]
[360997253,1747188642488,-400.0,0.00015068,2]
[360997256,1747188642498,-1255.388467,0.00015068,2]
[360997260,1747188642507,-1255.388467,0.00015068,2]
[360997262,1747188642517,-312.20738817,0.00015068,2]
[360997266,1747188642526,-400.0,0.00015068,2]
[360997269,1747188642536,-400.0,0.00015068,2]
[360997272,1747188642549,-400.0,0.00015068,2]
[360997275,1747188642559,-1181.47,0.00015068,2]
[360997278,1747188642568,-400.0,0.00015068,2]
[360997281,1747188642578,-355.13548898,0.00015068,2]
[360997284,1747188642587,-601.61,0.00015068,2]
[360997287,1747188642597,-3077.23,0.00015068,2]
[360997290,1747188642606,-404.0,0.00015075,2]
[360997293,1747188642615,-165.179887,0.00015075,2]
[360997296,1747188642625,-165.179889,0.00015075,2]
[360997298,1747188642635,-160.0,0.00015088,2]
[360997301,1747188642644,-160.0,0.00015088,2]
[360997305,1747188642655,-997.9747837,0.00015088,2]
[360997308,1747188642664,-160.0,0.00015088,2]
[360997311,1747188642674,-160.0,0.00015088,2]
[360997314,1747188642683,-151.0,0.00015089,2]
[360997317,1747188642693,-151.0,0.00015089,2]
[360997320,1747188642702,-168.33012,0.00015089,2]
[360997323,1747188642712,-151.0,0.00015089,2]
[360997326,1747188642722,-168.33012,0.00015089,2]
[360997329,1747188642732,-151.0,0.00015089,2]
[360997332,1747188642742,-198.988592,0.00015089,2]
[360997335,1747188642752,-160.0,0.00015089,2]
[360997338,1747188642761,-422.24190663,0.00015089,2]
[360997341,1747188642772,-160.0,0.00015089,2]
[360997344,1747188642781,-160.0,0.00015089,2]
[360997347,1747188642793,-12625.42653527,0.00015089,2]
[360997350,1747188642803,-160.0,0.00015089,2]
[360997354,1747188642812,-212.19047112,0.00015089,2]
[360997356,1747188642822,-10377.07522549,0.0001521,2]
[360997359,1747188642833,-478.42366836,0.00015211,2]
[360997395,1747188642990,-151.0,0.00015342,2]
[360997398,1747188643001,-151.0,0.00015342,2]
[360997401,1747188643010,-151.0,0.00015342,2]
[360997404,1747188643020,-151.0,0.00015342,2]
[360997407,1747188643029,-400.0,0.00015342,2]
[360997410,1747188643041,-151.0,0.00015342,2]
[360997413,1747188643051,-151.0,0.00015342,2]
[360997416,1747188643061,-160.340321,0.00015342,2]
[360997419,1747188643071,-400.0,0.00015342,2]
[360997422,1747188643081,-493.21,0.00015342,2]
[360997425,1747188643091,-444.22085269,0.00015342,2]
[360997428,1747188643100,-246.966158,0.00015342,2]
[360997431,1747188643110,-634.45,0.00015342,2]
[360997434,1747188643120,-246.966158,0.00015342,2]
[360997438,1747188643131,-584.31,0.00015342,2]
[360997441,1747188643140,-330.01631532,0.00015342,2]
[360997443,1747188643150,-400.0,0.00015342,2]
[360997446,1747188643160,-539.57302667,0.00015342,2]
[360997450,1747188643174,-1080.95,0.00015342,2]
[360997453,1747188643183,-400.0,0.00015342,2]
[360997455,1747188643193,-522.67723081,0.00015342,2]
[360997458,1747188643203,-1463.11,0.00015342,2]
[360997461,1747188643213,-1250.31,0.00015342,2]
[360997464,1747188643223,-400.0,0.00015342,2]
[360997467,1747188643232,-1255.388467,0.00015342,2]
[360997470,1747188643241,-1255.388467,0.00015342,2]
[360997473,1747188643252,-400.0,0.00015342,2]
[360997476,1747188643262,-400.0,0.00015342,2]
[360997479,1747188643271,-400.0,0.00015342,2]
[360997482,1747188643281,-1181.47,0.00015342,2]
[360997485,1747188643292,-400.0,0.00015342,2]
[360997487,1747188643301,-601.61,0.00015342,2]
[360997489,1747188643311,-3077.23,0.00015342,2]
[360997490,1747188643321,-151.0,0.00015471,2]
[360997493,1747188643333,-152.787728,0.00015471,2]
[360997495,1747188643342,-151.0,0.00015471,2]
[360997497,1747188643352,-151.0,0.00015471,2]
[360997499,1747188643362,-152.690911,0.00015486,2]
[360997501,1747188643372,-151.0,0.00015486,2]
[360997503,1747188643381,-151.0,0.00015486,2]
[360997505,1747188643391,-190.630887,0.00015486,2]
[360997507,1747188643401,-190.630887,0.00015486,2]
[360997509,1747188643410,-151.0,0.00015486,2]
[360997511,1747188643421,-151.0,0.00015486,2]
[360997513,1747188643431,-151.0,0.00015486,2]
[360997515,1747188643441,-168.33012,0.00015486,2]
[360997517,1747188643450,-168.33012,0.00015486,2]
[360997519,1747188643460,-400.0,0.00015616,2]
[360997521,1747188643470,-400.0,0.00015616,2]
[360997523,1747188643480,-493.21,0.00015616,2]
[360997525,1747188643490,-634.45,0.00015616,2]
[360997527,1747188643499,-584.31,0.00015616,2]
[360997529,1747188643509,-400.0,0.00015616,2]
[360997531,1747188643520,-1080.95,0.00015616,2]
[360997533,1747188643529,-400.0,0.00015616,2]
[360997535,1747188643539,-1463.11,0.00015616,2]
[360997537,1747188643550,-1250.31,0.00015616,2]
[360997538,1747188643560,-400.0,0.00015616,2]
[360997540,1747188643569,-400.0,0.00015616,2]
[360997541,1747188643579,-400.0,0.00015616,2]
[360997542,1747188643588,-400.0,0.00015616,2]
[360997543,1747188643597,-1181.47,0.00015616,2]
[360997545,1747188643607,-400.0,0.00015616,2]
[360997547,1747188643617,-601.61,0.00015616,2]
[360997549,1747188643627,-3077.23,0.00015616,2]
[360997550,1747188643637,-2200.0,0.00015723,2]
[360997551,1747188643647,-500.638,0.00015723,2]
[360997552,1747188643656,-204.975082,0.00015723,2]
[360997553,1747188643665,-155.519347,0.00015723,2]
[360997554,1747188643675,-151.0,0.00015723,2]
[360997555,1747188643685,-151.0,0.00015723,2]
[360997556,1747188643694,-10377.07522549,0.00015762,2]
[360997557,1747188643703,-151.0,0.00015831,2]
[360997558,1747188643713,-151.0,0.0001589,2]
[360997559,1747188643723,-151.0,0.0001589,2]
[360997560,1747188643732,-151.0,0.0001589,2]
[360997561,1747188643742,-453.12628555,0.0001589,2]
[360997562,1747188643751,-151.0,0.0001589,2]
[360997563,1747188643761,-400.0,0.0001589,2]
[360997564,1747188643771,-493.21,0.0001589,2]
[360997565,1747188643781,-246.966158,0.0001589,2]
[360997566,1747188643792,-634.45,0.0001589,2]
[360997567,1747188643802,-246.966158,0.0001589,2]
[360997568,1747188643812,-584.31,0.0001589,2]
[360997571,1747188643823,-400.0,0.0001589,2]
[360997572,1747188643832,-1080.95,0.0001589,2]
[360997574,1747188643841,-400.0,0.0001589,2]
[360997576,1747188643851,-1463.11,0.0001589,2]
[360997578,1747188643860,-1250.31,0.0001589,2]
[360997580,1747188643870,-536.60396321,0.0001589,2]
[360997582,1747188643879,-1255.388467,0.0001589,2]
[360997584,1747188643888,-1255.388467,0.0001589,2]
[360997586,1747188643898,-400.0,0.0001589,2]
[360997588,1747188643907,-400.0,0.0001589,2]
[360997590,1747188643917,-400.0,0.0001589,2]
[360997592,1747188643926,-1181.47,0.0001589,2]
[360997594,1747188643935,-400.0,0.0001589,2]
[360997595,1747188643944,-601.61,0.0001589,2]
[360997596,1747188643953,-3077.23,0.0001589,2]
[360997597,1747188643963,-1427.54835569,0.00015899,2]
[360997598,1747188643972,-3000.0,0.0001599,4]
[360997599,1747188643981,-152.428344,0.00016164,2]
[360997600,1747188643990,-151.0,0.00016164,2]
[360997601,1747188644000,-151.0,0.00016164,2]
[360997602,1747188644011,-151.0,0.00016164,2]
[360997603,1747188644020,-151.0,0.00016164,2]
[360997604,1747188644030,-276.342144,0.00016164,2]
[360997605,1747188644039,-151.0,0.00016164,2]
[360997606,1747188644050,-190.630887,0.00016164,2]
[360997607,1747188644059,-190.630887,0.00016164,2]
[360997609,1747188644069,-400.0,0.00016164,2]
[360997611,1747188644078,-151.0,0.00016164,2]
[360997613,1747188644087,-151.0,0.00016164,2]
[360997615,1747188644097,-493.21,0.00016164,2]
[360997616,1747188644106,-634.45,0.00016164,2]
[360997617,1747188644115,-584.31,0.00016164,2]
[360997618,1747188644124,-400.0,0.00016164,2]
[360997619,1747188644134,-151.0,0.00016164,2]
[360997620,1747188644144,-1080.95,0.00016164,2]
[360997622,1747188644154,-400.0,0.00016164,2]
[360997624,1747188644165,-168.33012,0.00016164,2]
[360997626,1747188644176,-1463.11,0.00016164,2]
[360997628,1747188644190,-168.33012,0.00016164,2]
[360997631,1747188644199,-1250.31,0.00016164,2]
[360997633,1747188644211,-400.0,0.00016164,2]
[360997635,1747188644220,-400.0,0.00016164,2]
[360997637,1747188644230,-400.0,0.00016164,2]
[360997639,1747188644239,-1181.47,0.00016164,2]
[360997641,1747188644248,-400.0,0.00016164,2]
[360997643,1747188644259,-601.61,0.00016164,2]
[360997645,1747188644268,-3077.23,0.00016164,2]
[360997647,1747188644278,-10377.07522549,0.00016314,2]
[360997649,1747188644287,-1255.388467,0.00016314,2]
[360997651,1747188644299,-1255.388467,0.00016314,2]
[360997653,1747188644307,-151.0,0.00016438,2]
[360997655,1747188644317,-151.0,0.00016438,2]
[360997657,1747188644327,-151.0,0.00016438,2]
[360997659,1747188644336,-165.90418,0.00016438,2]
[360997661,1747188644345,-400.0,0.00016438,2]
[360997663,1747188644355,-493.21,0.00016438,2]
[360997665,1747188644364,-634.45,0.00016438,2]
[360997667,1747188644373,-584.31,0.00016438,2]
[360997669,1747188644382,-400.0,0.00016438,2]
[360997671,1747188644391,-1080.95,0.00016438,2]
[360997673,1747188644401,-400.0,0.00016438,2]
[360997675,1747188644410,-151.0,0.00016438,2]
[360997677,1747188644420,-1463.11,0.00016438,2]
[360997679,1747188644429,-1250.31,0.00016438,2]
[360997681,1747188644438,-330.88565547,0.00016438,2]
[360997683,1747188644447,-400.0,0.00016438,2]
[360997685,1747188644457,-400.0,0.00016438,2]
[360997687,1747188644467,-1181.47,0.00016438,2]
[360997689,1747188644476,-400.0,0.00016438,2]
[360997691,1747188644486,-151.0,0.00016438,2]
[360997693,1747188644495,-164.13726072,0.00016438,2]
[360997695,1747188644506,-601.61,0.00016438,2]
[360997697,1747188644515,-3077.23,0.00016438,2]
[360997699,1747188644524,-151.0,0.00016438,2]
[360997701,1747188644534,-151.0,0.00016438,2]
[360997703,1747188644543,-151.0,0.00016438,2]
[360997705,1747188644554,-151.0,0.00016438,2]
[360997707,1747188644564,-151.0,0.00016438,2]
[360997709,1747188644574,-151.0,0.00016438,2]
[360997711,1747188644583,-151.0,0.00016438,2]
[360997713,1747188644592,-151.0,0.00016438,2]
[360997715,1747188644602,-151.0,0.00016438,2]
[360997717,1747188644611,-151.0,0.00016438,2]
[360997719,1747188644620,-209.80602,0.00016438,2]
[360997721,1747188644630,-151.0,0.00016438,2]
[360997723,1747188644639,-151.0,0.00016438,2]
[360997725,1747188644648,-151.0,0.00016438,2]
[360997727,1747188644658,-151.0,0.00016438,2]
[360997729,1747188644667,-253.387775,0.00016438,2]
[360997731,1747188644676,-246.966158,0.00016521,2]
[360997733,1747188644686,-246.966158,0.00016521,2]
[360997735,1747188644695,-152.0,0.00016522,2]
[360997737,1747188644704,-249.66148038,0.00016522,2]
[360997739,1747188644714,-255.082269,0.00016712,2]
[360997741,1747188644724,-151.0,0.00016712,2]
[360997743,1747188644734,-190.630887,0.00016712,2]
[360997745,1747188644744,-190.630887,0.00016712,2]
[360997747,1747188644754,-400.0,0.00016712,2]
[360997749,1747188644764,-151.5034,0.00016712,2]
[360997751,1747188644774,-194.586965,0.00016712,2]
[360997753,1747188644784,-493.21,0.00016712,2]
[360997755,1747188644794,-634.45,0.00016712,2]
[360997757,1747188644804,-584.31,0.00016712,2]
[360997759,1747188644813,-400.0,0.00016712,2]
[360997761,1747188644823,-151.0,0.00016712,2]
[360997763,1747188644832,-1080.95,0.00016712,2]
[360997765,1747188644842,-400.0,0.00016712,2]
[360997767,1747188644851,-168.33012,0.00016712,2]
[360997769,1747188644860,-1463.11,0.00016712,2]
[360997771,1747188644869,-168.33012,0.00016712,2]
[360997773,1747188644879,-1250.31,0.00016712,2]
[360997775,1747188644888,-400.0,0.00016712,2]
[360997777,1747188644897,-400.0,0.00016712,2]
[360997779,1747188644907,-1181.47,0.00016712,2]
[360997781,1747188644916,-400.0,0.00016712,2]
[360997783,1747188644926,-601.61,0.00016712,2]
[360997785,1747188644935,-3077.23,0.00016712,2]
[360997787,1747188644944,-1427.54835569,0.00016765,2]
[360997790,1747188644954,-151.0,0.00016796,2]
[360997792,1747188644964,-183.484721,0.00016796,2]
[360997794,1747188644973,-3297.42860234,0.000168,3]
[360997796,1747188644983,-1255.388467,0.00016865,2]
[360997798,1747188644993,-1255.388459,0.00016865,2]
[360997800,1747188645002,-10377.07522549,0.00016866,2]
[360997802,1747188645011,-899.812023,0.00016969,2]
[360997804,1747188645021,-151.0,0.00016986,2]
[360997806,1747188645030,-400.0,0.00016986,2]
[360997808,1747188645039,-493.21,0.00016986,2]
[360997810,1747188645049,-634.45,0.00016986,2]
[360997812,1747188645058,-584.31,0.00016986,2]
[360997814,1747188645068,-400.0,0.00016986,2]
[360997816,1747188645077,-1080.95,0.00016986,2]
[360997818,1747188645086,-400.0,0.00016986,2]
[360997820,1747188645095,-151.0,0.00016986,2]
[360997822,1747188645106,-1463.11,0.00016986,2]
[360997824,1747188645115,-1250.31,0.00016986,2]
[360997826,1747188645125,-400.0,0.00016986,2]
[360997828,1747188645134,-400.0,0.00016986,2]
[360997830,1747188645143,-1181.47,0.00016986,2]
[360997832,1747188645152,-400.0,0.00016986,2]
[360997834,1747188645167,-151.0,0.00016986,2]
[360997836,1747188645187,-151.0,0.00016986,2]
[360997838,1747188645197,-601.61,0.00016986,2]
[360997839,1747188645207,-3077.23,0.00016986,2]
[360997842,1747188645216,-151.0,0.00017141,2]
[360997843,1747188645226,-151.0,0.00017141,2]
[360997845,1747188645235,-151.725279,0.0001726,2]
[360997847,1747188645246,-151.938747,0.0001726,2]
[360997849,1747188645256,-151.0,0.0001726,2]
[360997852,1747188645267,-535.59704696,0.0001726,2]
[360997854,1747188645276,-493.21,0.0001726,2]
[360997856,1747188645286,-246.966158,0.0001726,2]
[360997858,1747188645297,-634.45,0.0001726,2]
[360997860,1747188645307,-246.966158,0.0001726,2]
[360997862,1747188645316,-584.31,0.0001726,2]
[360997864,1747188645326,-400.0,0.0001726,2]
[360997865,1747188645335,-151.0,0.0001726,2]
[360997867,1747188645345,-1080.95,0.0001726,2]
[360997869,1747188645354,-298.26812506,0.0001726,2]
[360997871,1747188645363,-168.33012,0.0001726,2]
[360997873,1747188645373,-1463.11,0.0001726,2]
[360997875,1747188645382,-168.33012,0.0001726,2]
[360997877,1747188645393,-1250.31,0.0001726,2]
[360997879,1747188645402,-400.0,0.0001726,2]
[360997882,1747188645412,-400.0,0.0001726,2]
[360997884,1747188645421,-1181.47,0.0001726,2]
[360997885,1747188645432,-400.0,0.0001726,2]
[360997887,1747188645441,-601.61,0.0001726,2]
[360997889,1747188645451,-3077.23,0.0001726,2]
[360997891,1747188645461,-151.0,0.00017279,2]
[360997892,1747188645470,-190.630887,0.00017279,2]
[360997893,1747188645480,-190.630887,0.00017279,2]
[360997894,1747188645489,-10377.07522549,0.00017417,2]
[360997895,1747188645498,-493.21,0.00017534,2]
[360997896,1747188645507,-634.45,0.00017534,2]
[360997897,1747188645517,-584.31,0.00017534,2]
[360997898,1747188645527,-400.0,0.00017534,2]
[360997899,1747188645536,-1080.95,0.00017534,2]
[360997900,1747188645548,-151.0,0.00017534,2]
[360997901,1747188645558,-1463.11,0.00017534,2]
[360997902,1747188645568,-1250.31,0.00017534,2]
[360997903,1747188645577,-400.0,0.00017534,2]
[360997904,1747188645586,-532.69603261,0.00017534,2]
[360997905,1747188645596,-1181.47,0.00017534,2]
[360997906,1747188645605,-400.0,0.00017534,2]
[360997908,1747188645615,-151.0,0.00017534,2]
[360997910,1747188645624,-151.0,0.00017534,2]
[360997912,1747188645634,-601.61,0.00017534,2]
[360997915,1747188645644,-3077.23,0.00017534,2]
[360997918,1747188645654,-478.42366836,0.00017622,2]
[360997921,1747188645664,-151.0,0.00017762,2]
[360997924,1747188645675,-493.21,0.00017808,2]
[360997927,1747188645685,-634.45,0.00017808,2]
[360997930,1747188645695,-584.31,0.00017808,2]
[360997935,1747188645705,-537.64444584,0.00017808,2]
[360997938,1747188645714,-151.0,0.00017808,2]
[360997941,1747188645723,-1080.95,0.00017808,2]
[360997945,1747188645733,-1463.11,0.00017808,2]
[360997949,1747188645743,-1250.31,0.00017808,2]
[360997952,1747188645753,-400.0,0.00017808,2]
[360997955,1747188645763,-1181.47,0.00017808,2]
[360997958,1747188645772,-400.0,0.00017808,2]
[360997961,1747188645783,-601.61,0.00017808,2]
[360997965,1747188645794,-3077.23,0.00017808,2]
[360997968,1747188645804,-10377.07522549,0.00017969,2]
[360997970,1747188645814,-168.33012,0.00017969,2]
[360997973,1747188645823,-168.330126,0.00017969,2]